fUSD/lending_fUSD_20260516
["ID","MTS","AMOUNT","RATE_DAILY","PERIOD"]
[422379954,1778905833000,-500.0,0.00014999,2]
[422379926,1778905833000,-1841.24566548,0.000149,2]
[422379925,1778905833000,-16937.46237904,0.000149,3]
[422379924,1778905833000,-759.24146496,0.00014899,2]
[422379929,1778905833000,-951.41879683,0.000149,2]
[422379928,1778905833000,-5000.0,0.000149,2]
[422379931,1778905833000,-346.90767094,0.000149,2]
[422379933,1778905833000,-157.09232906,0.000149,2]
[422379930,1778905833000,-186.75581319,0.000149,2]
[422379932,1778905833000,-490.6632674,0.000149,2]
[422379936,1778905833000,-194.0,0.00014967,2]
[422379935,1778905833000,-255.0,0.00014938,2]
[422379937,1778905833000,-55434.8111286,0.00014982,2]
[422379938,1778905833000,-6063.93855002,0.00014982,2]
[422379934,1778905833000,-150.0,0.00014924,2]
[422379941,1778905833000,-150.0,0.00014986,2]
[422379961,1778905833000,-500.0,0.00014999,2]
[422379988,1778905833000,-699.49483532,0.00015,5]
[422379957,1778905833000,-343.64516607,0.00014999,2]
[422379984,1778905833000,-637.20601894,0.00015,5]
[422379981,1778905833000,-300.0,0.00014999,2]
[422379979,1778905833000,-176.01726302,0.00014999,2]
[422379983,1778905833000,-144.31353387,0.00014999,2]
[422379980,1778905833000,-300.0,0.00014999,2]
[422379982,1778905833000,-155.68646613,0.00014999,2]
[422379977,1778905833000,-367.30284009,0.00014999,2]
[422379985,1778905833000,-308.93914437,0.00015,5]
[422379986,1778905833000,-276.85483669,0.00015,5]
[422379990,1778905833000,-150.0,0.00015,2]
[422379994,1778905833000,-3319.77029272,0.00015,2]
[422379992,1778905833000,-730.56740842,0.00015,2]
[422379991,1778905833000,-150.0,0.00015,2]
[422379993,1778905833000,-575.75,0.00015,2]
[422379987,1778905833000,-224.67257312,0.00015,5]
[422379978,1778905833000,-123.98273698,0.00014999,2]
[422379989,1778905833000,-54.83259156,0.00015,5]
[422379974,1778905833000,-327.86432009,0.00014999,2]
[422379976,1778905833000,-157.17763504,0.00014999,2]
[422379960,1778905833000,-500.0,0.00014999,2]
[422379959,1778905833000,-13.65806832,0.00014999,2]
[422379964,1778905833000,-244.57082129,0.00014999,2]
[422379963,1778905833000,-255.42917871,0.00014999,2]
[422379967,1778905833000,-500.0,0.00014999,2]
[422379966,1778905833000,-500.0,0.00014999,2]
[422379955,1778905833000,-188.93982381,0.00014999,2]
[422379965,1778905833000,-500.0,0.00014999,2]
[422379969,1778905833000,-500.0,0.00014999,2]
[422379970,1778905833000,-500.0,0.00014999,2]
[422379971,1778905833000,-500.0,0.00014999,2]
[422379973,1778905833000,-378.66801127,0.00014999,2]
[422379972,1778905833000,-54.94668282,0.00014999,2]
[422379975,1778905833000,-500.0,0.00014999,2]
[422379968,1778905833000,-497.5001,0.00014999,2]
[422380004,1778905838000,-193.10842848,0.00014889,2]
[422380002,1778905838000,-622.06521321,0.00012861,2]
[422380005,1778905838000,-89571.92325395,0.00015,2]
[422380006,1778905838000,-615.95819007,0.00015,2]
[422380003,1778905838000,-348.38002646,0.000147,2]
[422380008,1778905838000,-465.29519956,0.00015,2]
[422380007,1778905838000,-2535.41985069,0.00015,2]
[422380009,1778905838000,-2023.2261267,0.00015,2]
[422380012,1778905838000,-2537646.31575142,0.00015,2]
[422380010,1778905838000,-495.58283335,0.00015,2]
[422380013,1778905838000,-2076.26775754,0.00015,2]
[422380015,1778905838000,-8083.22155272,0.00015,2]
[422380016,1778905838000,-1884908.27464986,0.00015,2]
[422380011,1778905838000,-3501.60150192,0.00015,2]
[422380014,1778905838000,-3145.20959537,0.00015,14]
[422380038,1778905840000,-24573.84470954,0.00015,2]
[422380037,1778905840000,-232.25335098,0.000147,2]
[422380039,1778905840000,-497.56596219,0.00015,2]
[422380051,1778905843000,-193.10842848,0.00014891,2]
[422380052,1778905843000,-397.64939163,0.00015,2]
[422380064,1778905846000,-1832.0902,0.00015,2]
[422380065,1778905846000,-583.84,0.00015,2]
[422380067,1778906508000,302.57992565,0.000301,120]
[422380069,1778906805000,161.7,6.902e-05,2]
[422380070,1778906805000,161.7,9.113e-05,2]
[422380072,1778906815000,-86.6149222,0.00012018,2]
[422380071,1778906815000,-161.7,0.00011323,2]
[422380102,1778907032000,-221.17028831,0.00013526,2]
[422380103,1778907032000,-161.7,0.00013534,2]
[422380104,1778907032000,-102.54821169,0.00013634,2]
[422380106,1778907032000,-250.0,0.00013634,2]
[422380105,1778907032000,-267.6711325,0.00013634,2]
[422380109,1778907032000,-197.83,0.00013635,2]
[422380111,1778907032000,-166.66,0.00013699,2]
[422380107,1778907032000,-3921.00065581,0.00013634,2]
[422380112,1778907032000,-200.0,0.00013719,2]
[422380113,1778907032000,-1585.0,0.0001372,2]
[422380114,1778907032000,-150.0,0.00013787,2]
[422380137,1778907032000,-166.66,0.00014041,2]
[422380115,1778907032000,-307.14,0.00013859,2]
[422380119,1778907032000,-166.66,0.0001387,2]
[422380117,1778907032000,-150.0,0.00013862,2]
[422380121,1778907032000,-151.0,0.00013979,2]
[422380128,1778907032000,-151.0,0.00013979,2]
[422380123,1778907032000,-640.08,0.00013979,2]
[422380133,1778907032000,-150.0,0.00013987,2]
[422380139,1778907032000,-150.0,0.0001405,2]
[422380125,1778907032000,-640.47,0.00013979,2]
[422380130,1778907032000,-150.0,0.00013987,2]
[422380135,1778907032000,-787.0,0.0001404,2]
[422380110,1778907032000,-500.0,0.00013658,2]
[422380101,1778907032000,-552.0,0.00013526,2]
[422380099,1778907032000,-701.03296128,0.00013526,2]
[422380096,1778907032000,-32.52010108,0.00013488,2]
[422380076,1778907032000,-152.0,0.00012018,2]
[422380075,1778907032000,-65.3850778,0.00012018,2]
[422380081,1778907032000,-347.15888123,0.00013356,2]
[422380078,1778907032000,-152.0,0.00012615,7]
[422380077,1778907032000,-167.74026246,0.00012018,2]
[422380079,1778907032000,-250.0,0.00013098,2]
[422380080,1778907032000,-500.0,0.00013356,2]
[422380083,1778907032000,-500.0,0.00013356,2]
[422380082,1778907032000,-173.82858543,0.00013356,2]
[422380084,1778907032000,-215.03962261,0.00013438,2]
[422380086,1778907032000,-1200.0,0.00013487,2]
[422380085,1778907032000,-221.14,0.00013471,2]
[422380088,1778907032000,-150.0,0.00013488,2]
[422380087,1778907032000,-300.0,0.00013487,2]
[422380089,1778907032000,-150.0,0.00013488,2]
[422380091,1778907032000,-150.00000001,0.00013488,2]
[422380090,1778907032000,-150.0,0.00013488,2]
[422380093,1778907032000,-150.0,0.00013488,2]
[422380092,1778907032000,-150.0,0.00013488,2]
[422380094,1778907032000,-150.0,0.00013488,2]
[422380095,1778907032000,-117.47989892,0.00013488,2]
[422380097,1778907032000,-150.0,0.00013488,2]
[422380098,1778907032000,-307.14,0.00013521,2]
[422380100,1778907032000,-525.79675041,0.00013526,2]
[422380141,1778907032000,-12784.8968,0.0001405,2]
[422380161,1778907032000,-500.0,0.00014503,2]
[422380143,1778907032000,-150.0,0.00014087,2]
[422380179,1778907032000,-485.47662152,0.00014725,2]
[422380178,1778907032000,-910.78222874,0.00014725,2]
[422380180,1778907032000,-350.0,0.00014743,2]
[422380182,1778907032000,-151.0,0.00014773,2]
[422380183,1778907032000,-3191.23833026,0.00014775,2]
[422380181,1778907032000,-154.33,0.00014773,2]
[422380184,1778907032000,-270.69,0.00014777,2]
[422380186,1778907032000,-151.0,0.00014777,2]
[422380185,1778907032000,-151.0,0.00014777,2]
[422380188,1778907032000,-151.0,0.00014777,2]
[422380187,1778907032000,-153.23,0.00014777,2]
[422380189,1778907032000,-183.31,0.00014777,2]
[422380193,1778907032000,-293.97,0.00014777,2]
[422380190,1778907032000,-479.59,0.00014777,2]
[422380196,1778907032000,-151.0,0.00014778,2]
[422380191,1778907032000,-283.34,0.00014777,2]
[422380194,1778907032000,-151.0,0.00014777,2]
[422380192,1778907032000,-151.0,0.00014777,2]
[422380197,1778907032000,-151.0,0.00014778,2]
[422380198,1778907032000,-152.3,0.00014778,2]
[422380200,1778907032000,-151.12,0.00014778,2]
[422380199,1778907032000,-479.59,0.00014778,2]
[422380145,1778907032000,-307.14,0.00014197,2]
[422380177,1778907032000,-1872.07836152,0.00014725,2]
[422380175,1778907032000,-150.0,0.00014612,2]
[422380195,1778907032000,-151.0,0.00014777,2]
[422380174,1778907032000,-3491.8149,0.00014595,2]
[422380176,1778907032000,-150.0,0.00014687,2]
[422380147,1778907032000,-166.66,0.00014212,2]
[422380158,1778907032000,-1060.05,0.00014497,2]
[422380159,1778907032000,-350.0,0.00014501,2]
[422380150,1778907032000,-150.0,0.00014237,2]
[422380152,1778907032000,-166.66,0.00014384,2]
[422380153,1778907032000,-150.0,0.00014387,2]
[422380157,1778907032000,-3383.04,0.00014497,2]
[422380155,1778907032000,-150.0,0.00014487,2]
[422380156,1778907032000,-412.4,0.00014497,2]
[422380160,1778907032000,-500.0,0.00014503,2]
[422380162,1778907032000,-500.0,0.00014503,2]
[422380154,1778907032000,-150.0,0.00014487,2]
[422380163,1778907032000,-500.0,0.00014503,2]
[422380164,1778907032000,-500.0,0.00014503,2]
[422380168,1778907032000,-500.0,0.00014503,2]
[422380167,1778907032000,-500.0,0.00014503,2]
[422380166,1778907032000,-500.0,0.00014503,2]
[422380171,1778907032000,-500.0,0.00014503,2]
[422380165,1778907032000,-500.0,0.00014503,2]
[422380169,1778907032000,-500.0,0.00014503,2]
[422380170,1778907032000,-500.0,0.00014503,2]
[422380173,1778907032000,-307.14,0.00014535,2]
[422380172,1778907032000,-514.56779146,0.00014503,2]
[422380246,1778907033000,-151.0,0.00014778,2]
[422380236,1778907033000,-479.59,0.00014778,2]
[422380248,1778907033000,-151.0,0.00014778,2]
[422380240,1778907033000,-151.0,0.00014778,2]
[422380239,1778907033000,-151.0,0.00014778,2]
[422380235,1778907033000,-151.0,0.00014778,2]
[422380243,1778907033000,-393.98,0.00014778,2]
[422380237,1778907033000,-151.0,0.00014778,2]
[422380233,1778907033000,-151.0,0.00014778,2]
[422380234,1778907033000,-151.0,0.00014778,2]
[422380241,1778907033000,-184.04,0.00014778,2]
[422380244,1778907033000,-151.0,0.00014778,2]
[422380245,1778907033000,-151.0,0.00014778,2]
[422380255,1778907033000,-200.0,0.0001488,2]
[422380238,1778907033000,-151.0,0.00014778,2]
[422380242,1778907033000,-479.59,0.00014778,2]
[422380249,1778907033000,-479.59,0.00014778,2]
[422380250,1778907033000,-151.0,0.00014778,2]
[422380251,1778907033000,-238.93634,0.0001485,2]
[422380253,1778907033000,-238.93635,0.0001486,2]
[422380252,1778907033000,-238.93634,0.0001485,2]
[422380254,1778907033000,-307.14,0.00014873,2]
[422380256,1778907033000,-332.0,0.00014899,2]
[422380257,1778907033000,-704.3237094,0.00014899,2]
[422380258,1778907033000,-704.3237094,0.00014899,2]
[422380228,1778907033000,-184.04,0.00014778,2]
[422380247,1778907033000,-151.0,0.00014778,2]
[422380231,1778907033000,-151.0,0.00014778,2]
[422380206,1778907033000,-151.0,0.00014778,2]
[422380229,1778907033000,-640.47,0.00014778,2]
[422380201,1778907033000,-394.1,0.00014778,2]
[422380203,1778907033000,-155.78,0.00014778,2]
[422380202,1778907033000,-151.0,0.00014778,2]
[422380259,1778907033000,-704.3237094,0.00014899,2]
[422380208,1778907033000,-393.98,0.00014778,2]
[422380204,1778907033000,-239.16,0.00014778,2]
[422380207,1778907033000,-184.04,0.00014778,2]
[422380205,1778907033000,-151.0,0.00014778,2]
[422380210,1778907033000,-479.59,0.00014778,2]
[422380209,1778907033000,-151.0,0.00014778,2]
[422380211,1778907033000,-151.0,0.00014778,2]
[422380213,1778907033000,-151.0,0.00014778,2]
[422380212,1778907033000,-151.0,0.00014778,2]
[422380214,1778907033000,-153.14,0.00014778,2]
[422380216,1778907033000,-392.67,0.00014778,2]
[422380219,1778907033000,-195.41,0.00014778,2]
[422380217,1778907033000,-151.0,0.00014778,2]
[422380218,1778907033000,-151.0,0.00014778,2]
[422380221,1778907033000,-151.0,0.00014778,2]
[422380220,1778907033000,-402.24,0.00014778,2]
[422380222,1778907033000,-151.0,0.00014778,2]
[422380223,1778907033000,-184.04,0.00014778,2]
[422380227,1778907033000,-152.24,0.00014778,2]
[422380226,1778907033000,-479.59,0.00014778,2]
[422380225,1778907033000,-639.68,0.00014778,2]
[422380224,1778907033000,-151.0,0.00014778,2]
[422380230,1778907033000,-151.0,0.00014778,2]
[422380232,1778907033000,-151.0,0.00014778,2]
[422380260,1778907033000,-704.3237094,0.00014899,2]
[422380215,1778907033000,-479.3,0.00014778,2]
[422380262,1778907033000,-704.3237094,0.000149,2]
[422380295,1778907033000,-346.28558127,0.00014999,2]
[422380294,1778907033000,-500.0,0.00014999,2]
[422380299,1778907033000,-500.0,0.00014999,2]
[422380301,1778907033000,-500.0,0.00014999,2]
[422380298,1778907033000,-500.0,0.00014999,2]
[422380296,1778907033000,-153.71441873,0.00014999,2]
[422380297,1778907033000,-500.0,0.00014999,2]
[422380304,1778907033000,-500.0,0.00014999,2]
[422380303,1778907033000,-500.0,0.00014999,2]
[422380302,1778907033000,-500.0,0.00014999,2]
[422380320,1778907033000,-500.0,0.00014999,2]
[422380305,1778907033000,-500.0,0.00014999,2]
[422380306,1778907033000,-500.0,0.00014999,2]
[422380307,1778907033000,-500.0,0.00014999,2]
[422380308,1778907033000,-500.0,0.00014999,2]
[422380309,1778907033000,-500.0,0.00014999,2]
[422380310,1778907033000,-500.0,0.00014999,2]
[422380311,1778907033000,-500.0,0.00014999,2]
[422380312,1778907033000,-500.0,0.00014999,2]
[422380314,1778907033000,-400.53743922,0.00014999,2]
[422380316,1778907033000,-500.0,0.00014999,2]
[422380317,1778907033000,-500.0,0.00014999,2]
[422380315,1778907033000,-500.0,0.00014999,2]
[422380313,1778907033000,-500.0,0.00014999,2]
[422380318,1778907033000,-500.0,0.00014999,2]
[422380319,1778907033000,-500.0,0.00014999,2]
[422380261,1778907033000,-704.3237094,0.00014899,2]
[422380293,1778907033000,-522.95350649,0.00014999,2]
[422380292,1778907033000,-500.0,0.00014999,2]
[422380300,1778907033000,-500.0,0.00014999,2]
[422380289,1778907033000,-2734.6757209,0.00014999,2]
[422380263,1778907033000,-704.3237094,0.000149,2]
[422380286,1778907033000,-2486.4947564,0.00014999,2]
[422380266,1778907033000,-485.575,0.000149,2]
[422380265,1778907033000,-704.3237094,0.000149,2]
[422380264,1778907033000,-704.3237094,0.000149,2]
[422380269,1778907033000,-446.0,0.00014906,2]
[422380267,1778907033000,-1877.2184,0.000149,2]
[422380268,1778907033000,-704.3237094,0.000149,2]
[422380270,1778907033000,-332.0,0.00014975,2]
[422380273,1778907033000,-150.90979649,0.00014986,2]
[422380272,1778907033000,-150.0,0.00014986,2]
[422380274,1778907033000,-150.0,0.00014986,2]
[422380275,1778907033000,-150.0,0.00014986,2]
[422380280,1778907033000,-181.0,0.00014989,2]
[422380271,1778907033000,-223.83475462,0.00014986,2]
[422380279,1778907033000,-252.447278,0.00014989,2]
[422380284,1778907033000,-5433.73833528,0.00014999,2]
[422380276,1778907033000,-150.0,0.00014986,2]
[422380291,1778907033000,-466.47642448,0.00014999,2]
[422380288,1778907033000,-501.1482029,0.00014999,2]
[422380287,1778907033000,-1311.7214649,0.00014999,2]
[422380285,1778907033000,-1569.0316404,0.00014999,2]
[422380290,1778907033000,-500.0,0.00014999,2]
[422380283,1778907033000,-49936.54728402,0.00014999,2]
[422380281,1778907033000,-151.0,0.00014997,2]
[422380278,1778907033000,-150.0,0.00014986,2]
[422380277,1778907033000,-150.0,0.00014986,2]
[422380282,1778907033000,-500.0,0.00014999,2]
[422380332,1778907034000,-500.0,0.00014999,2]
[422380334,1778907034000,-240.42268719,0.00014999,2]
[422380352,1778907034000,-500.0,0.00014999,2]
[422380339,1778907034000,-500.0,0.00014999,2]
[422380341,1778907034000,-500.0,0.00014999,2]
[422380342,1778907034000,-500.0,0.00014999,2]
[422380345,1778907034000,-441.49766365,0.00014999,2]
[422380354,1778907034000,-500.0,0.00014999,2]
[422380344,1778907034000,-500.0,0.00014999,2]
[422380335,1778907034000,-182.25476934,0.00014999,2]
[422380343,1778907034000,-500.0,0.00014999,2]
[422380337,1778907034000,-500.0,0.00014999,2]
[422380321,1778907034000,-500.0,0.00014999,2]
[422380336,1778907034000,-500.0,0.00014999,2]
[422380333,1778907034000,-500.0,0.00014999,2]
[422380331,1778907034000,-500.0,0.00014999,2]
[422380330,1778907034000,-500.0,0.00014999,2]
[422380325,1778907034000,-500.0,0.00014999,2]
[422380329,1778907034000,-416.1848195,0.00014999,2]
[422380327,1778907034000,-500.0,0.00014999,2]
[422380326,1778907034000,-500.0,0.00014999,2]
[422380328,1778907034000,-500.0,0.00014999,2]
[422380324,1778907034000,-6715.82056638,0.00014999,2]
[422380322,1778907034000,-303.91070457,0.00014999,2]
[422380323,1778907034000,-5169.56732652,0.00014999,2]
[422380353,1778907034000,-500.0,0.00014999,2]
[422380338,1778907034000,-500.0,0.00014999,2]
[422380347,1778907034000,-500.0,0.00014999,2]
[422380340,1778907034000,-244.65873063,0.00014999,2]
[422380349,1778907034000,-500.0,0.00014999,2]
[422380348,1778907034000,-313.14138123,0.00014999,2]
[422380378,1778907034000,-1272.80387378,0.00015,2]
[422380377,1778907034000,-605.6100191,0.00015,2]
[422380376,1778907034000,-1254.41808677,0.00015,2]
[422380373,1778907034000,-150.0,0.00015,2]
[422380371,1778907034000,-1400.0,0.00015,5]
[422380374,1778907034000,-150.0,0.00015,2]
[422380375,1778907034000,-74428.74636257,0.00015,2]
[422380372,1778907034000,-1122.0,0.00015,5]
[422380369,1778907034000,-666.0,0.00014999,2]
[422380367,1778907034000,-666.0,0.00014999,2]
[422380368,1778907034000,-300.0,0.00014999,2]
[422380365,1778907034000,-500.0,0.00014999,2]
[422380370,1778907034000,-300.0,0.00014999,2]
[422380364,1778907034000,-500.0,0.00014999,2]
[422380351,1778907034000,-500.0,0.00014999,2]
[422380366,1778907034000,-300.0,0.00014999,2]
[422380350,1778907034000,-500.0,0.00014999,2]
[422380346,1778907034000,-500.0,0.00014999,2]
[422380355,1778907034000,-2263.1110967,0.00014999,2]
[422380357,1778907034000,-500.0,0.00014999,2]
[422380356,1778907034000,-500.0,0.00014999,2]
[422380361,1778907034000,-500.0,0.00014999,2]
[422380360,1778907034000,-590.96345864,0.00014999,2]
[422380362,1778907034000,-500.0,0.00014999,2]
[422380358,1778907034000,-500.0,0.00014999,2]
[422380363,1778907034000,-500.0,0.00014999,2]
[422380359,1778907034000,-500.0,0.00014999,2]
[422380387,1778907038000,-729.56719882,0.00015,2]
[422380392,1778907038000,-150.0,0.00015,2]
[422380390,1778907038000,-577320.46976154,0.00015,2]
[422380388,1778907038000,-526.50344134,0.00015,2]
[422380386,1778907038000,-24452.54532216,0.00015,2]
[422380379,1778907038000,-2414.29239559,0.00015,2]
[422380383,1778907038000,-459.86242947,0.00015,2]
[422380381,1778907038000,-4718.76265176,0.00015,2]
[422380384,1778907038000,-454.37043806,0.00015,2]
[422380380,1778907038000,-773.53367802,0.00015,2]
[422380394,1778907038000,-150.0,0.00015,2]
[422380385,1778907038000,-315.21883984,0.00015,2]
[422380395,1778907038000,-595.57617731,0.00015,2]
[422380382,1778907038000,-2514.85491156,0.00015,2]
[422380389,1778907038000,-2000.0,0.00015,2]
[422380412,1778907038000,-151.0,0.00015,2]
[422380415,1778907038000,-3855474.39201095,0.00015,2]
[422380397,1778907038000,-663.71786296,0.00015,2]
[422380408,1778907038000,-242.781,0.00015,2]
[422380409,1778907038000,-150.974,0.00015,2]
[422380403,1778907038000,-165.938,0.00015,2]
[422380405,1778907038000,-250.0,0.00015,2]
[422380414,1778907038000,-150.823,0.00015,2]
[422380398,1778907038000,-174.174,0.00015,2]
[422380399,1778907038000,-150.224,0.00015,2]
[422380393,1778907038000,-377.90049415,0.00015,2]
[422380391,1778907038000,-348.34,0.00015,2]
[422380396,1778907038000,-150.0,0.00015,2]
[422380401,1778907038000,-192.979,0.00015,2]
[422380428,1778907039000,-3869.91001202,0.00015,2]
[422380433,1778907040000,-510.68167904,0.00015,2]
[422380446,1778907046000,-517.0,0.00015,2]
[422380445,1778907046000,-1026.1668,0.00015,2]
[422380443,1778907046000,-151.0,0.00014778,2]
[422380444,1778907046000,-2354.0,0.00015,2]
[422380455,1778907049000,-14199.99981582,0.00015,2]
[422380457,1778907050000,-1458.670872,0.00015,2]
[422380458,1778907050000,-600.0,0.00015,2]
[422380459,1778907050000,-527.50353436,0.0001395,2]
[422380460,1778907050000,-388.64047566,0.0001395,2]
[422380464,1778907767000,500.0,0.0002963,120]
[422380490,1778908232000,-151.0,0.00013953,2]
[422380488,1778908232000,-151.0,0.00013953,2]
[422380489,1778908232000,-158.06,0.00013953,2]
[422380498,1778908232000,-151.0,0.00013953,2]
[422380497,1778908232000,-151.0,0.00013953,2]
[422380499,1778908232000,-479.59,0.00013953,2]
[422380500,1778908232000,-155.57,0.00013956,2]
[422380491,1778908232000,-151.0,0.00013953,2]
[422380492,1778908232000,-151.0,0.00013953,2]
[422380495,1778908232000,-151.0,0.00013953,2]
[422380493,1778908232000,-415.1,0.00013953,2]
[422380494,1778908232000,-479.59,0.00013953,2]
[422380496,1778908232000,-189.38,0.00013953,2]
[422380510,1778908232000,-183.8,0.00013956,2]
[422380503,1778908232000,-151.0,0.00013956,2]
[422380513,1778908232000,-151.0,0.00013956,2]
[422380501,1778908232000,-151.0,0.00013956,2]
[422380487,1778908232000,-151.0,0.00013953,2]
[422380474,1778908232000,-250.0,0.00011769,2]
[422380482,1778908232000,-150.0,0.0001384,2]
[422380468,1778908232000,-150.0,0.00010699,2]
[422380469,1778908232000,-66246.50556055,0.000107,2]
[422380470,1778908232000,-687.69603829,0.000107,2]
[422380472,1778908232000,-255.0,0.00011737,2]
[422380471,1778908232000,-29376.94371553,0.000107,2]
[422380473,1778908232000,-250.0,0.00011769,2]
[422380475,1778908232000,-500.0,0.00013356,2]
[422380477,1778908232000,-150.0,0.00013488,2]
[422380479,1778908232000,-2811.53,0.00013608,2]
[422380508,1778908232000,-151.0,0.00013956,2]
[422380478,1778908232000,-150.0,0.00013576,2]
[422380476,1778908232000,-500.0,0.00013356,2]
[422380480,1778908232000,-150.0,0.00013664,2]
[422380483,1778908232000,-150.0,0.00013928,2]
[422380486,1778908232000,-393.98,0.00013953,2]
[422380481,1778908232000,-150.0,0.00013752,2]
[422380485,1778908232000,-478.99,0.00013953,2]
[422380484,1778908232000,-2000.0,0.00013942,2]
[422380505,1778908232000,-151.0,0.00013956,2]
[422380549,1778908232000,-184.04,0.00013956,2]
[422380504,1778908232000,-412.95,0.00013956,2]
[422380552,1778908232000,-151.0,0.00013956,2]
[422380555,1778908232000,-151.0,0.00013956,2]
[422380554,1778908232000,-151.0,0.00013956,2]
[422380553,1778908232000,-479.59,0.00013956,2]
[422380556,1778908232000,-200.0,0.00013963,2]
[422380545,1778908232000,-160.35,0.00013956,2]
[422380547,1778908232000,-151.0,0.00013956,2]
[422380550,1778908232000,-160.7,0.00013956,2]
[422380543,1778908232000,-479.59,0.00013956,2]
[422380564,1778908232000,-2443.8603,0.00014495,2]
[422380560,1778908232000,-150.0,0.00014193,2]
[422380561,1778908232000,-150.0,0.00014281,2]
[422380563,1778908232000,-150.0,0.00014457,2]
[422380559,1778908232000,-150.0,0.00014105,2]
[422380562,1778908232000,-150.0,0.00014369,2]
[422380502,1778908232000,-151.0,0.00013956,2]
[422380557,1778908232000,-250.0,0.00014,2]
[422380551,1778908232000,-151.0,0.00013956,2]
[422380558,1778908232000,-150.0,0.00014017,2]
[422380539,1778908232000,-151.0,0.00013956,2]
[422380541,1778908232000,-153.62,0.00013956,2]
[422380512,1778908232000,-479.59,0.00013956,2]
[422380517,1778908232000,-393.98,0.00013956,2]
[422380514,1778908232000,-283.3,0.00013956,2]
[422380515,1778908232000,-151.0,0.00013956,2]
[422380531,1778908232000,-151.0,0.00013956,2]
[422380533,1778908232000,-151.0,0.00013956,2]
[422380519,1778908232000,-184.04,0.00013956,2]
[422380506,1778908232000,-151.0,0.00013956,2]
[422380525,1778908232000,-151.0,0.00013956,2]
[422380527,1778908232000,-151.0,0.00013956,2]
[422380521,1778908232000,-479.59,0.00013956,2]
[422380522,1778908232000,-151.0,0.00013956,2]
[422380529,1778908232000,-184.04,0.00013956,2]
[422380537,1778908232000,-393.98,0.00013956,2]
[422380524,1778908232000,-151.0,0.00013956,2]
[422380523,1778908232000,-151.0,0.00013956,2]
[422380535,1778908232000,-393.98,0.00013956,2]
[422380568,1778908233000,-3221.58,0.00014504,2]
[422380565,1778908233000,-276.87,0.00014497,2]
[422380566,1778908233000,-150.99,0.00014504,2]
[422380567,1778908233000,-1487.69,0.00014504,2]
[422380569,1778908233000,-562.85,0.00014504,2]
[422380573,1778908233000,-10069.52099087,0.00014504,2]
[422380572,1778908233000,-9999.99,0.00014504,2]
[422380571,1778908233000,-2653.24,0.00014504,2]
[422380574,1778908233000,-477.0558266,0.00014504,2]
[422380576,1778908233000,-463.38560571,0.00014504,2]
[422380575,1778908233000,-550.23948953,0.00014504,2]
[422380570,1778908233000,-6991.09,0.00014504,2]
[422380593,1778908238000,-150.0,0.00014546,2]
[422380599,1778908238000,-393.98,0.00014775,2]
[422380598,1778908238000,-151.0,0.00014775,2]
[422380600,1778908238000,-151.0,0.00014775,2]
[422380597,1778908238000,-492.76,0.00014775,2]